bitfinex-derivatives/quotes_SOLF0:USTF0_20251108
["timestamp","ask_amount","ask_price","bid_price","bid_amount"]
[1762639761046,0.04167291,157.74,157.73,8.7377]
[1762639764550,3.15167291,157.74,157.73,8.7377]
[1762639770957,0.04167291,157.74,157.73,8.7377]
[1762639781167,5.92078304,157.79,157.73,8.7377]
[1762639781362,5.92078304,157.8,157.79,3.09]
[1762639781564,4.82927741,157.8,157.79,3.09]
[1762639785376,7.82927741,157.8,157.78,3.13820789]
[1762639785567,3.0,157.8,157.78,3.13820789]
[1762639786268,8.7052,157.8,157.78,3.13820789]
[1762639788277,3.0,157.8,157.78,3.13820789]
[1762639789177,8.7053,157.8,157.78,3.13820789]
[1762639789379,3.0,157.79,157.78,0.04820789]
[1762639793978,3.0,157.79,157.78,3.13820789]
[1762639795282,8.7053,157.8,157.78,3.13820789]
[1762639798081,3.0,157.79,157.78,0.04820789]
[1762639798586,3.0,157.79,157.78,3.13820789]
[1762639800286,3.0,157.8,157.78,3.13820789]
[1762639802887,8.7052,157.8,157.78,3.13820789]
[1762639808088,3.24,157.79,157.78,0.04820789]
[1762639812289,8.9455,157.79,157.78,0.04820789]
[1762639816189,15.77384991,157.79,157.78,0.04820789]
[1762639817293,3.24,157.77,157.74,8.797]
[1762639818300,3.28811749,157.77,157.74,8.84232435]
[1762639822208,3.28811749,157.77,157.74,0.04532435]
[1762639823299,3.24,157.76,157.74,0.04532435]
[1762639825307,8.9467,157.76,157.74,0.04532435]
[1762639825503,3.24,157.75,157.74,0.04532435]
[1762639825911,5.29670258,157.75,157.74,0.04532435]
[1762639831206,3.24,157.75,157.74,0.04532435]
[1762639849528,3.24,157.75,157.69,65.34]
[1762639849529,3.22,157.74,157.69,65.34]
[1762639850325,0.04031834,157.73,157.7,0.03931743]
[1762639850520,3.22,157.72,157.7,0.03931743]
[1762639854538,3.22,157.71,157.7,0.03931743]
[1762639860139,3.26031834,157.73,157.71,8.6284]
[1762639861138,3.26031834,157.73,157.72,2.92]
[1762639861335,0.04031834,157.73,157.72,2.92]
[1762639861638,3.19031834,157.73,157.72,2.92]
[1762639862632,0.04031834,157.73,157.72,2.92]
[1762639877149,0.04031834,157.73,157.72,8.6281]
[1762639890343,5.92078304,157.8,157.79,8.6655]
[1762639890344,3.15,157.8,157.79,8.6655]
[1762639890547,7.95341465,157.8,157.79,8.6655]
[1762639890742,4.80341465,157.8,157.79,8.6655]
[1762639890944,7.95341465,157.8,157.79,8.6655]
[1762639892257,7.95341465,157.8,157.79,5.7055]
[1762639893261,7.95065291,157.8,157.79,5.7055]
[1762639894356,3.15,157.8,157.78,8.88969805]
[1762639903862,3.15,157.8,157.78,3.18379805]
[1762639904068,3.15,157.8,157.79,5.7055]
[1762639904360,7.95161902,157.8,157.79,5.7055]
[1762639904866,4.80161902,157.8,157.79,8.9055]
[1762639905057,3.01212532,157.81,157.79,8.9055]
[1762639905259,2.97,157.79,157.75,3.2]
[1762639905566,6.18730399,157.76,157.75,3.2]
[1762639907065,6.18730399,157.76,157.75,8.907]
[1762639907367,6.18730399,157.76,157.75,5.707]
[1762639907966,2.97,157.75,157.74,0.03583772]
[1762639921586,3.01293489,157.77,157.75,5.707]
[1762639921781,3.01293489,157.77,157.74,3.14583772]
[1762639921988,3.01293489,157.77,157.74,8.85313772]
[1762639924885,3.01293489,157.77,157.75,3.11]
[1762639928186,3.01293489,157.77,157.74,5.74313772]
[1762639928391,3.01293489,157.77,157.74,8.85313772]
[1762639929985,3.01293489,157.77,157.75,3.11]
[1762639932293,3.01293489,157.77,157.74,5.74313772]
[1762639932490,3.01293489,157.77,157.74,8.85313772]
[1762639934895,3.01293489,157.77,157.75,8.8169]
[1762639935092,3.01293489,157.77,157.75,5.7069]
[1762639935301,3.01293489,157.77,157.75,8.8169]
[1762639935691,3.01293489,157.77,157.75,5.7069]
[1762639936285,3.01293489,157.77,157.74,0.03583772]
[1762639940598,3.01293489,157.77,157.74,5.74313772]
[1762639940903,3.01293489,157.77,157.75,3.22]
[1762639941299,4.75278858,157.76,157.75,3.22]
[1762639943203,7.80278858,157.76,157.74,5.74313772]
[1762639943402,3.05,157.76,157.74,8.96313772]
[1762639944410,3.05,157.76,157.75,3.22]
[1762639944704,7.80353997,157.76,157.75,3.22]
[1762639944901,4.75353997,157.76,157.75,3.22]
[1762639945507,7.80353997,157.76,157.75,3.22]
[1762639945805,7.80328818,157.76,157.75,3.22]
[1762639950009,7.80328818,157.76,157.74,8.96313772]
[1762639950309,4.75328818,157.75,157.74,8.96313772]
[1762639954113,0.04293489,157.77,157.75,2.92]
[1762639954114,3.10293489,157.77,157.75,2.92]
[1762639954315,4.75746299,157.76,157.75,2.92]
[1762639954811,4.75746299,157.76,157.75,8.627]
[1762639956515,0.04293489,157.77,157.76,2.92]
[1762639956704,4.79957947,157.77,157.76,2.92]
[1762639957613,0.04293489,157.77,157.76,2.92]
[1762639965922,3.12,157.82,157.79,2.93]
[1762639966223,4.76582483,157.81,157.79,2.93]
[1762639966429,3.12,157.84,157.79,2.93]
[1762639966722,7.88539438,157.83,157.79,2.93]
[1762639966923,3.12,157.81,157.8,5.7052]
[1762639967423,3.12,157.81,157.8,8.6352]
[1762639968024,3.16214235,157.83,157.81,5.7046]
[1762639968220,0.04214235,157.83,157.82,2.93]
[1762639968419,4.80417034,157.83,157.82,2.93]
[1762639969129,0.04214235,157.83,157.82,2.93]
[1762639969333,3.16214235,157.83,157.79,8.67990681]
[1762639969624,3.12,157.82,157.79,8.67990681]
[1762639970225,3.12,157.82,157.8,5.7051]
[1762639971321,3.12,157.82,157.8,8.6351]
[1762639971627,3.12,157.82,157.8,5.7051]
[1762639971928,3.12,157.82,157.8,8.6351]
[1762639976533,3.12,157.82,157.79,0.04470681]
[1762639978032,3.12,157.82,157.79,5.75020681]
[1762639978335,3.12,157.82,157.79,8.68020681]
[1762639994554,0.04214235,157.83,157.79,8.68020681]
[1762639994555,0.04214235,157.83,157.8,8.6752]
[1762639994756,0.04214235,157.83,157.81,2.97]
[1762639998153,0.04214235,157.83,157.82,8.6745]
[1762640001156,3.20214235,157.83,157.81,3.15]
[1762640001552,0.04214235,157.83,157.81,3.15]
[1762640001860,0.04214235,157.83,157.81,8.8547]
[1762640002157,0.04214235,157.83,157.82,3.15]
[1762640014868,0.04214235,157.83,157.82,8.8545]
[1762640018870,3.26214235,157.83,157.8,5.7049]
[1762640019065,3.26214235,157.83,157.8,8.8549]
[1762640019375,3.26214235,157.83,157.81,3.15]
[1762640020976,0.04214235,157.83,157.81,8.8548]
[1762640021670,0.04214235,157.83,157.82,3.15]
[1762640021871,4.83475185,157.83,157.82,3.15]
[1762640023475,0.04214235,157.83,157.82,3.15]
[1762640029183,4.80854863,157.83,157.82,3.15]
[1762640031385,0.04214235,157.83,157.82,3.15]
[1762640036278,4.81192548,157.83,157.82,3.15]
[1762640037188,4.81192548,157.83,157.82,8.8545]
[1762640037994,4.81269112,157.83,157.82,8.8545]
[1762640040390,0.04214235,157.83,157.82,8.8545]
[1762640043586,2.98,157.82,157.8,3.09]
[1762640043791,0.04214235,157.83,157.8,3.09]
[1762640044293,0.04214235,157.83,157.82,3.09]
[1762640049200,2.98,157.89,157.85,3.09]
[1762640049396,7.75036017,157.88,157.85,3.09]
[1762640049599,4.77036017,157.87,157.85,3.09]
[1762640049897,2.98,157.88,157.85,3.09]
[1762640050298,3.02768153,157.88,157.85,3.13830177]
[1762640051100,3.02768153,157.88,157.86,8.7929]
[1762640053302,2.98,157.87,157.85,3.13830177]
[1762640053799,5.08290502,157.88,157.86,3.09]
[1762640054202,3.02768153,157.88,157.86,3.09]
[1762640055391,3.02768153,157.88,157.85,8.84160177]
[1762640055805,3.02768153,157.88,157.86,3.09]
[1762640056792,3.02768153,157.88,157.85,0.04830177]
[1762640056793,2.98,157.86,157.85,0.04830177]
[1762640057106,7.72884273,157.86,157.84,3.09]
[1762640057302,2.98,157.86,157.84,3.09]
[1762640059700,2.98,157.86,157.84,8.7937]
[1762640060310,2.98,157.86,157.83,3.26502536]
[1762640062011,3.23,157.87,157.84,3.22]
[1762640063100,3.23,157.87,157.84,8.9237]
[1762640063304,3.23,157.87,157.85,3.22]
[1762640064010,3.27768153,157.88,157.84,3.22]
[1762640064611,3.27768153,157.88,157.85,3.22]
[1762640065616,3.23,157.87,157.84,3.22]
[1762640067021,3.23,157.87,157.85,3.22]
[1762640068121,3.23,157.87,157.85,8.9232]
[1762640069712,3.23,157.87,157.85,3.22]
[1762640070909,5.28522349,157.87,157.83,0.04502536]
[1762640071112,3.23,157.86,157.83,0.04502536]
[1762640071816,2.05522349,157.87,157.76,3.07]
[1762640071817,3.04,157.84,157.76,3.07]
[1762640072020,3.04,157.82,157.77,3.07]
[1762640072411,3.04,157.8,157.78,3.07]
[1762640073519,3.04,157.8,157.77,3.09758783]
[1762640075618,3.04,157.8,157.77,8.80378783]
[1762640076224,3.04,157.8,157.77,3.09758783]
[1762640080327,5.13874455,157.81,157.78,3.07]
[1762640080626,3.08352106,157.81,157.78,3.07]
[1762640080822,0.04352106,157.81,157.78,8.7758]
[1762640081019,3.08352106,157.81,157.79,3.07]
[1762640082018,3.08352106,157.81,157.79,8.7755]
[1762640083126,0.04352106,157.81,157.8,3.07]
[1762640089622,0.04352106,157.81,157.8,65.51]
[1762640100532,0.04352106,157.81,157.8,3.07]
[1762640106137,2.96352106,157.81,157.78,3.19]
[1762640106431,2.96352106,157.81,157.77,0.02758783]
[1762640108341,2.92,157.79,157.77,0.02758783]
[1762640109041,6.13149254,157.79,157.77,0.02758783]
[1762640109349,2.92,157.78,157.77,0.02758783]
[1762640110136,7.66127153,157.78,157.73,3.19]
[1762640110341,2.92,157.77,157.73,3.19]
[1762640111241,2.96000104,157.77,157.73,3.19]
[1762640111442,2.96000104,157.77,157.73,8.8976]
[1762640113844,2.96000104,157.77,157.73,3.19]
[1762640114149,2.96000104,157.77,157.72,65.69]
[1762640114348,2.96000104,157.77,157.72,3.19]
[1762640114549,2.96000104,157.77,157.71,5.7082]
[1762640114747,2.92,157.76,157.7,3.19]
[1762640115450,2.92,157.76,157.7,8.8987]
[1762640119557,2.96000104,157.77,157.72,3.19]
[1762640120150,0.04000104,157.77,157.75,3.19]
[1762640120841,0.04000104,157.77,157.75,8.8969]
[1762640121049,0.04000104,157.77,157.76,3.19]
[1762640124149,2.92,157.83,157.79,3.19]
[1762640124655,2.92,157.83,157.74,62.56]
[1762640124957,2.92,157.83,157.76,3.19]
[1762640125156,0.04173048,157.81,157.79,3.19]
[1762640125756,2.96173048,157.81,157.78,0.04000104]
[1762640127852,2.92,157.79,157.78,0.04000104]
[1762640128054,2.92,157.79,157.73,8.8976]
[1762640128355,2.92,157.77,157.73,3.19]
[1762640129044,2.96559747,157.77,157.73,8.8977]
[1762640131862,3.04,157.76,157.73,3.19]
[1762640132360,3.04,157.76,157.71,8.7882]
[1762640132953,3.04,157.76,157.73,3.08]
[1762640133554,3.04,157.76,157.7,8.7885]
[1762640133955,3.04,157.76,157.7,3.08]
[1762640134962,3.04,157.76,157.71,5.7083]
[1762640135262,3.04,157.76,157.72,3.08]
[1762640136063,3.04,157.75,157.69,65.68]
[1762640136264,0.04118583,157.74,157.7,3.08]
[1762640136454,3.08118583,157.74,157.7,3.08]
[1762640136963,3.08118583,157.74,157.68,8.7892]
[1762640137753,3.04,157.71,157.68,3.08]
[1762640137956,3.04,157.71,157.66,3.08]
[1762640138157,3.04,157.69,157.66,3.08]
[1762640138364,3.04,157.69,157.65,3.08]
[1762640141361,3.04,157.69,157.66,3.08]
[1762640145265,2.97661868,157.7,157.67,2.96]
[1762640150177,0.04661868,157.7,157.67,8.6698]
[1762640150372,0.04661868,157.7,157.68,2.96]
[1762640150672,2.97661868,157.7,157.66,2.96]
[1762640152861,2.97661868,157.7,157.67,2.96]
[1762640155873,2.97661868,157.7,157.68,2.96]
[1762640162173,2.97661868,157.7,157.63,3.0]
[1762640162375,3.15,157.67,157.58,3.0]
[1762640162579,3.19181151,157.64,157.58,3.0]
[1762640162978,5.25208723,157.64,157.58,3.0]
[1762640163175,3.15,157.63,157.58,3.0]
[1762640164185,3.15,157.62,157.58,3.0]
[1762640165182,3.15,157.62,157.59,3.0]
[1762640166587,3.19181151,157.64,157.6,3.0]
[1762640166773,3.19183108,157.64,157.6,3.0]
[1762640166979,0.04183108,157.64,157.6,3.0]
[1762640167578,3.19183108,157.64,157.6,3.0]
[1762640167979,3.19183108,157.64,157.61,3.0]
[1762640171887,3.19183108,157.64,157.6,8.7123]
[1762640174089,3.19183108,157.64,157.61,3.0]
[1762640175887,3.19183108,157.64,157.6,5.7123]
[1762640176091,3.19183108,157.64,157.6,8.7123]
[1762640176288,3.19183108,157.64,157.61,3.0]
[1762640176889,0.04183108,157.64,157.62,3.0]
[1762640179090,0.04183108,157.64,157.62,8.7116]
[1762640179290,0.04183108,157.64,157.63,3.0]
[1762640192405,2.1021068,157.64,157.61,3.06]
[1762640192706,2.10387173,157.64,157.61,3.06]
[1762640192908,5.12387173,157.64,157.61,3.06]
[1762640193704,2.06027572,157.62,157.61,8.772]
[1762640196610,5.08027572,157.62,157.6,5.7123]
[1762640196805,5.08027572,157.62,157.6,8.7723]
[1762640198812,5.08027572,157.62,157.6,3.06]
[1762640202313,3.02,157.61,157.58,3.06]
[1762640202514,2.06027572,157.6,157.58,3.06]
[1762640202811,2.06027572,157.6,157.56,3.06]
[1762640202812,3.02,157.59,157.56,3.06]
[1762640203015,3.06665579,157.59,157.56,3.06]
[1762640204114,3.06665579,157.59,157.57,3.06]
[1762640209521,0.04665579,157.59,157.57,3.06]
[1762640211020,0.04665579,157.59,157.57,8.7735]
[1762640211221,0.04665579,157.59,157.58,3.2]
[1762640232637,0.04665579,157.59,157.58,8.9132]
[1762640232835,22.0,157.65,157.58,3.2]
[1762640233137,4.78841661,157.64,157.58,3.2]
[1762640233443,6.32156977,157.67,157.51,19.19881073]
[1762640233444,3.1,157.67,157.63,2.94]
[1762640233630,4.78935373,157.66,157.63,2.94]
[1762640233831,4.78935373,157.65,157.63,2.98126887]
[1762640234030,0.04819497,157.66,157.63,2.98126887]
[1762640234241,4.79036096,157.65,157.63,2.98126887]
[1762640234444,0.04819497,157.66,157.63,2.98126887]
[1762640234735,4.79036096,157.65,157.63,2.98126887]
[1762640234936,0.04819497,157.66,157.63,2.98126887]
[1762640235236,4.7903379,157.65,157.63,2.98126887]
[1762640235430,0.04819497,157.66,157.63,2.98126887]
[1762640235630,4.79173845,157.65,157.63,2.98126887]
[1762640235831,0.04819497,157.66,157.63,2.98126887]
[1762640236740,0.04819497,157.66,157.63,8.69256887]
[1762640236939,0.04819497,157.66,157.64,2.94]
[1762640238034,4.79855561,157.65,157.63,2.98126887]
[1762640238238,3.14819497,157.66,157.63,2.98126887]
[1762640245246,0.04819497,157.66,157.63,8.69246887]
[1762640245450,0.04819497,157.66,157.64,2.94]
[1762640245451,3.14819497,157.66,157.64,2.94]
[1762640252659,3.17,157.64,157.63,0.04126887]
[1762640253348,7.95630957,157.64,157.63,0.04126887]
[1762640253553,3.17,157.63,157.6,3.11]
[1762640253751,6.39156977,157.63,157.6,3.11]
[1762640256959,3.17,157.63,157.6,3.11]
[1762640257258,6.39156977,157.64,157.61,3.11]
[1762640257764,3.22156977,157.64,157.62,3.11]
[1762640258165,6.39156977,157.64,157.62,3.11]
[1762640259867,3.22156977,157.64,157.62,3.11]
[1762640260167,3.22156977,157.64,157.63,3.11]
[1762640266373,0.04819497,157.66,157.64,3.15]
[1762640267967,0.04819497,157.66,157.65,8.8606]
[1762640271376,0.04819497,157.66,157.54,3.15]
[1762640271377,2.96,157.65,157.54,3.15]
[1762640271581,3.22156977,157.58,157.54,3.15]
[1762640271782,3.26566617,157.58,157.54,3.15]
[1762640272276,6.22566617,157.58,157.54,3.15]
[1762640272483,2.96,157.57,157.54,3.15]
[1762640272875,3.22156977,157.55,157.54,3.15]
[1762640273778,2.96,157.57,157.54,3.15]
[1762640275783,0.0440964,157.58,157.54,3.15]
[1762640279286,0.0440964,157.58,157.55,3.15]
[1762640280992,0.0440964,157.58,157.57,3.15]
[1762640282392,6.36156977,157.65,157.59,3.17]
[1762640282691,7.86836908,157.64,157.59,3.17]
[1762640282892,3.14,157.64,157.59,3.17]
[1762640283289,3.14,157.64,157.6,0.04279309]
[1762640283495,0.04831236,157.63,157.61,3.17]
[1762640286092,0.04831236,157.63,157.62,3.17]
[1762640307916,0.04831236,157.63,157.62,8.8817]
[1762640317818,5.91472242,157.7,157.68,3.06]
[1762640317819,5.12100025,157.7,157.68,3.06]
[1762640318021,4.92210329,157.69,157.68,3.06]
[1762640318833,4.92210329,157.69,157.68,8.7695]
[1762640319035,2.1046845,157.7,157.69,3.06]
[1762640319230,7.0289993,157.7,157.69,3.06]
[1762640319425,4.96799905,157.7,157.69,3.06]
[1762640324140,7.0289993,157.7,157.69,3.06]
[1762640326433,3.0,157.69,157.67,0.04464829]
[1762640326633,5.06100025,157.68,157.67,0.04464829]
[1762640328238,9.9672048,157.68,157.67,0.04464829]
[1762640328641,9.96720483,157.68,157.67,0.04464829]
[1762640329240,2.06100025,157.68,157.67,3.05464829]
[1762640329443,2.1046845,157.7,157.69,3.01]
[1762640329638,7.01166253,157.7,157.69,3.01]
[1762640330244,2.1046845,157.7,157.69,3.01]
[1762640332844,0.04368425,157.7,157.69,3.01]
[1762640335344,67.66100025,157.76,157.71,3.01]
[1762640335541,4.90291667,157.75,157.71,3.01]
[1762640335741,4.90291667,157.74,157.73,5.7077]
[1762640335933,5.06100025,157.76,157.73,3.01]
[1762640336137,4.90307228,157.75,157.73,3.05662968]
[1762640336335,5.10850544,157.76,157.73,3.05662968]
[1762640336535,4.90185257,157.75,157.73,3.05662968]
[1762640336748,5.10850544,157.76,157.73,3.05662968]
[1762640336949,5.10850544,157.76,157.74,5.7073]
[1762640337248,5.10850544,157.76,157.74,8.7173]
[1762640340247,0.04750519,157.76,157.75,3.01]
[1762640340445,3.0,157.75,157.73,0.04662968]
[1762640340646,5.06100025,157.74,157.73,0.04662968]
[1762640343056,3.14,157.73,157.69,8.9289]
[1762640343359,3.14,157.71,157.66,3.22]
[1762640343655,2.06100025,157.7,157.69,3.22]
[1762640345156,0.0437718,157.71,157.7,8.9288]
[1762640347155,0.0437718,157.71,157.69,3.22]
[1762640347758,0.0437718,157.71,157.69,8.9291]
[1762640348853,0.0437718,157.71,157.7,3.22]
[1762640351654,3.14,157.76,157.72,3.22]
[1762640352556,3.18652977,157.76,157.72,3.26488913]
[1762640352960,3.18652977,157.76,157.72,0.04488913]
[1762640353159,6.3567531,157.74,157.72,0.04488913]
[1762640353365,3.14,157.73,157.72,0.04488913]
[1762640357361,8.06931732,157.73,157.72,0.04488913]
[1762640357761,3.14,157.73,157.72,0.04488913]
[1762640359563,8.07124769,157.73,157.72,0.04488913]
[1762640365370,12.64138083,157.73,157.72,0.04488913]
[1762640370266,8.07124769,157.73,157.72,0.04488913]
[1762640370466,12.64284287,157.73,157.72,0.04488913]
[1762640372164,4.93124769,157.73,157.72,3.23488913]
[1762640372367,8.11124769,157.73,157.72,0.04488913]
[1762640373666,8.11124769,157.73,157.72,5.75298913]
[1762640374570,4.93124769,157.73,157.72,8.94298913]
[1762640375462,5.92945654,157.76,157.74,5.7073]
[1762640375463,3.22652977,157.76,157.74,5.7073]
[1762640375663,8.12523574,157.75,157.74,5.7073]
[1762640377871,4.94523574,157.75,157.74,8.8973]
[1762640379967,0.04652977,157.76,157.74,8.8973]
[1762640380272,3.22652977,157.76,157.74,8.8973]
[1762640386074,3.22652977,157.76,157.75,3.16]
[1762640386269,8.13657706,157.76,157.75,3.16]
[1762640387174,8.13657706,157.76,157.74,5.7073]
[1762640387381,3.22652977,157.76,157.74,5.7073]
[1762640389480,3.22652977,157.76,157.74,8.8673]
[1762640394283,3.22652977,157.76,157.75,3.16]
[1762640394584,8.13435249,157.76,157.75,3.16]
[1762640396883,8.13435249,157.76,157.75,8.867]
[1762640401184,3.22652977,157.76,157.75,8.867]
[1762640401388,0.04652977,157.76,157.75,8.867]
[1762640401574,3.0,157.79,157.72,0.04488913]
[1762640401575,6.2167531,157.81,157.79,2.96]
[1762640401776,4.90808018,157.8,157.79,2.96]
[1762640402174,6.2167531,157.84,157.79,2.96]
[1762640402382,3.0,157.82,157.79,2.96]
[1762640402584,3.0,157.8,157.79,0.04780871]
[1762640403785,6.2167531,157.81,157.79,5.75320871]
[1762640403993,6.2167531,157.81,157.79,8.71320871]
[1762640404188,0.04741067,157.82,157.8,2.96]
[1762640404692,0.04741067,157.82,157.8,8.6648]
[1762640405089,0.04741067,157.82,157.81,2.96]
[1762640407987,6.2167531,157.87,157.83,2.96]
[1762640408193,4.90087657,157.86,157.83,2.96]
[1762640408396,2.05486195,157.87,157.83,2.96]
[1762640408887,2.05486195,157.87,157.83,3.00701319]
[1762640409097,2.10313214,157.87,157.86,2.96]
[1762640417303,0.04827019,157.87,157.86,2.96]
[1762640418802,2.05486195,157.91,157.88,2.96]
[1762640419799,2.05486195,157.91,157.88,3.00490452]
[1762640419800,2.09659048,157.91,157.88,3.00490452]
[1762640420096,2.09659048,157.91,157.89,8.6619]
[1762640421708,2.09659048,157.91,157.9,2.94]
[1762640427007,0.04172853,157.91,157.9,2.94]
[1762640430713,2.05486195,157.95,157.9,2.94]
[1762640430914,2.05486195,157.95,157.92,2.94]
[1762640431716,5.05486195,157.95,157.92,2.94]
[1762640431911,5.10157148,157.95,157.92,2.98548837]
[1762640432116,5.10157148,157.95,157.93,8.8802]
[1762640432415,5.10157148,157.95,157.94,3.18]
[1762640433118,5.10157148,157.95,157.93,8.8802]
[1762640436616,2.10157148,157.95,157.94,3.18]
[1762640437324,0.04670953,157.95,157.94,3.18]
[1762640437717,0.04670953,157.95,157.94,22.14036107]
[1762640449025,2.95,157.98,157.95,3.11]
[1762640449527,5.00486195,157.98,157.95,3.11]
[1762640449725,68.40292677,158.02,157.91,3.11]
[1762640449726,5.00486195,157.96,157.91,3.11]
[1762640449926,0.04533017,157.95,157.93,3.11]
[1762640450532,0.04533017,157.95,157.93,8.8102]
[1762640450533,2.99533017,157.95,157.93,8.8102]
[1762640450928,2.05486195,157.94,157.93,8.8102]
[1762640451630,5.00486195,157.94,157.93,3.11]
[1762640451835,2.95,157.93,157.92,0.04872135]
[1762640452334,2.95,157.92,157.89,3.11]
[1762640452530,5.00486195,157.92,157.89,3.11]
[1762640453331,5.00486195,157.92,157.89,3.15798751]
[1762640453732,5.00486195,157.9,157.89,5.74988751]
[1762640453932,5.00486195,157.9,157.89,0.04798751]
[1762640454729,2.95,157.89,157.83,3.11]
[1762640454927,2.05486195,157.87,157.83,3.11]
[1762640455730,2.10321757,157.87,157.83,3.15348828]
[1762640455942,2.10321757,157.87,157.85,5.7031]
[1762640456132,2.10321757,157.87,157.85,8.8131]
[1762640456527,0.04835562,157.87,157.86,3.11]
[1762640459844,0.04835562,157.87,157.85,5.7031]
[1762640460045,2.99835562,157.87,157.85,8.8131]
[1762640460448,2.99835562,157.87,157.85,5.7031]
[1762640461152,2.99835562,157.87,157.84,3.11]
[1762640461451,2.05486195,157.86,157.83,5.74728828]
[1762640461651,0.04835562,157.87,157.84,3.07]
[1762640462048,3.25835562,157.87,157.84,3.07]
[1762640462354,3.25835562,157.87,157.84,8.7737]
[1762640462947,3.25835562,157.87,157.85,8.7733]
[1762640466955,3.25835562,157.87,157.85,5.7033]
[1762640467166,3.21,157.85,157.83,0.04348828]
[1762640467453,5.26486195,157.84,157.83,0.04348828]
[1762640468260,3.21,157.83,157.78,8.7757]
[1762640469246,0.0417049,157.82,157.79,0.04412373]
[1762640469450,3.21,157.81,157.79,0.04412373]
[1762640478967,8.9149,157.81,157.79,0.04412373]
[1762640479166,3.21,157.8,157.79,0.04412373]
[1762640495280,8.05292516,157.8,157.79,0.04412373]
[1762640495781,3.21,157.8,157.79,0.04412373]
[1762640497391,8.05982491,157.8,157.79,0.04412373]
[1762640498683,8.06256692,157.8,157.79,0.04412373]
[1762640499187,3.0817049,157.82,157.79,3.14412373]
[1762640499895,3.0817049,157.82,157.8,5.7052]
[1762640500177,7.8962759,157.81,157.79,3.14412373]
[1762640500382,3.04,157.81,157.79,3.14412373]
[1762640500895,3.04,157.81,157.79,8.84962373]
[1762640501385,3.04,157.81,157.79,0.04412373]
[1762640501683,7.89839168,157.8,157.79,0.04412373]
[1762640508783,0.0417049,157.82,157.79,3.20412373]
[1762640508989,4.84646221,157.81,157.79,3.20412373]
[1762640509191,3.0617049,157.82,157.79,3.20412373]
[1762640509489,4.85162722,157.81,157.79,3.20412373]
[1762640509685,3.0617049,157.82,157.79,3.20412373]
[1762640509885,3.02,157.8,157.79,0.04412373]
[1762640510085,7.87216146,157.8,157.79,0.04412373]
[1762640521397,10.71821584,157.8,157.79,3.06412373]
[1762640521597,4.85216146,157.8,157.79,3.06412373]
[1762640522195,5.517392,157.83,157.79,3.06412373]
[1762640522403,2.97,157.86,157.83,3.02]
[1762640522607,2.97,157.86,157.81,3.02]
[1762640522906,2.97,157.86,157.79,62.6]
[1762640522907,2.97,157.89,157.84,3.02]
[1762640523305,3.01697541,157.88,157.85,3.06562641]
[1762640523913,3.01697541,157.88,157.86,3.02]
[1762640524416,0.04697541,157.88,157.86,8.7229]
[1762640524608,3.01697541,157.88,157.86,8.7229]
[1762640525006,0.04697541,157.88,157.86,8.7229]
[1762640525406,0.04697541,157.88,157.87,3.02]
[1762640526616,2.97,157.93,157.89,3.02]
[1762640527510,3.01568479,157.93,157.9,8.7215]
[1762640528320,0.04568479,157.93,157.91,3.02]
[1762640528506,0.04568479,157.93,157.92,3.02]
[1762640530807,3.01568479,157.93,157.89,8.76484389]
[1762640531422,3.01568479,157.93,157.9,3.02]
[1762640532119,3.01568479,157.93,157.89,8.76484389]
[1762640532918,3.01568479,157.93,157.9,3.02]
[1762640533416,3.01568479,157.93,157.89,8.76484389]
[1762640533808,2.97,157.91,157.89,0.04304389]
[1762640535616,2.05280917,157.9,157.89,0.04304389]
[1762640535916,5.02280917,157.9,157.89,0.04304389]
[1762640542220,2.97,157.9,157.89,0.04304389]